fUST/lending_fUST_20250321
["ID","MTS","AMOUNT","RATE_DAILY","PERIOD"]
[356468420,1742499034284,-539.5252015,0.00032876,21]
[356468421,1742499034294,-500.0,0.00032876,21]
[356468422,1742499034304,-721.61,0.00032876,21]
[356468423,1742499034314,-500.0,0.00032876,21]
[356468424,1742499034324,-500.0,0.00032876,21]
[356468425,1742499034334,-500.0,0.00032876,21]
[356468426,1742499034344,-507.54160947,0.00032876,21]
[356468427,1742499034354,-762.5,0.00032876,21]
[356468428,1742499034364,-1601.64,0.00032876,21]
[356468429,1742499034373,-500.0,0.00032876,21]
[356468430,1742499034382,-505.49626665,0.00032876,21]
[356468431,1742499034392,-500.0,0.00032876,21]
[356468432,1742499034404,-1492.52,0.00032876,21]
[356468433,1742499034418,-511.71757186,0.00032876,21]
[356468434,1742499034430,-500.0,0.00032876,21]
[356468435,1742499034441,-500.0,0.00032876,21]
[356468436,1742499034451,-518.64713139,0.00032876,21]
[356468437,1742499034461,-500.0,0.00032876,21]
[356468438,1742499034472,-1292.36,0.00032876,21]
[356468439,1742499034482,-500.0,0.00032876,21]
[356468440,1742499034492,-500.0,0.00032876,21]
[356468441,1742499034502,-500.0,0.00032876,21]
[356468442,1742499034513,-500.0,0.00032876,21]
[356468443,1742499034524,-500.0,0.00032876,21]
[356468444,1742499034533,-507.37644692,0.00032876,21]
[356468445,1742499034543,-578.78,0.00032876,21]
[356468446,1742499034553,-500.0,0.00032876,21]
[356468447,1742499034564,-581.2417316,0.00032876,21]
[356468448,1742499034574,-766.21,0.00032876,21]
[356468449,1742499034584,-500.0,0.00032876,21]
[356468450,1742499034594,-500.0,0.00032876,21]
[356468451,1742499034605,-1357.22,0.00032876,21]
[356468452,1742499034616,-500.0,0.00032876,21]
[356468453,1742499034626,-429.09493037,0.00032876,21]
[356468454,1742499034636,-500.0,0.00032876,21]
[356468455,1742499034647,-502.02691652,0.00032876,21]
[356468456,1742499034657,-816.26,0.00032876,21]
[356468457,1742499034667,-500.0,0.00032876,21]
[356468458,1742499034677,-505.62227063,0.00032876,21]
[356468459,1742499034687,-500.0,0.00032876,21]
[356468460,1742499034698,-500.0,0.00032876,7]
[356468461,1742499034708,-2178.77,0.00032876,21]
[356468462,1742499034718,-500.0,0.00032876,21]
[356468463,1742499034728,-500.0,0.00032876,21]
[356468464,1742499034739,-501.66458078,0.00032876,21]
[356468465,1742499034753,-500.0,0.00032876,21]
[356468466,1742499034763,-500.0,0.00032876,2]
[356468467,1742499034773,-508.69007606,0.00032876,21]
[356468468,1742499034782,-500.0,0.00032876,21]
[356468469,1742499034792,-500.0,0.00032876,21]
[356468470,1742499034801,-500.0,0.00032876,21]
[356468471,1742499034810,-1016.12,0.00032876,21]
[356468472,1742499034820,-500.0,0.00032876,21]
[356468473,1742499034830,-690.37,0.00032876,21]
[356468474,1742499034839,-504.94238345,0.00032876,21]
[356468475,1742499034849,-500.0,0.00032876,21]
[356468476,1742499034859,-620.46,0.00032876,21]
[356468477,1742499034869,-500.0,0.00032876,21]
[356468478,1742499034879,-500.0,0.00032876,21]
[356468479,1742499034888,-539.09,0.00032876,21]
[356468480,1742499034898,-786.44,0.00032876,21]
[356468481,1742499034910,-500.0,0.00032876,21]
[356468482,1742499034920,-1336.33,0.00032876,21]
[356468483,1742499034930,-505.61328746,0.00032876,21]
[356468484,1742499034940,-500.0,0.00032876,21]
[356468485,1742499034950,-500.0,0.00032876,21]
[356468486,1742499034960,-500.0,0.00032876,21]
[356468487,1742499034969,-593.51,0.00032876,21]
[356468488,1742499034979,-1176.29,0.00032876,21]
[356468489,1742499034989,-500.0,0.00032876,21]
[356468490,1742499035000,-500.0,0.00032876,21]
[356468491,1742499035011,-500.0,0.00032876,21]
[356468492,1742499035020,-500.0,0.00032876,21]
[356468493,1742499035030,-565.38,0.00032876,21]
[356468494,1742499035041,-718.19,0.00032876,21]
[356468495,1742499035050,-500.0,0.00032876,21]
[356468496,1742499035059,-500.0,0.00032876,21]
[356468497,1742499035069,-500.0,0.00032876,21]
[356468498,1742499035079,-500.0,0.00032876,21]
[356468499,1742499035088,-938.37,0.00032876,21]
[356468500,1742499035097,-700.27,0.00032876,21]
[356468501,1742499035107,-500.0,0.00032876,21]
[356468502,1742499035117,-669.87,0.00032876,21]
[356468503,1742499035126,-500.0,0.00032876,21]
[356468504,1742499035136,-1032.05,0.00032876,21]
[356468505,1742499035145,-789.01,0.00032876,21]
[356468506,1742499035155,-500.0,0.00032876,21]
[356468507,1742499035164,-500.0,0.00032876,21]
[356468508,1742499035174,-500.0,0.00032876,21]
[356468509,1742499035183,-500.0,0.00032876,21]
[356468510,1742499035193,-500.0,0.00032876,5]
[356468511,1742499035202,-867.87,0.00032876,21]
[356468512,1742499035212,-673.42,0.00032876,21]
[356468513,1742499035221,-1227.99,0.00032876,21]
[356468514,1742499035231,-507.77,0.00032876,21]
[356468515,1742499035240,-990.44,0.00032876,21]
[356468516,1742499035249,-241.95831524,0.00032876,21]
[356468517,1742499035259,-151.0,0.00032876,7]
[356468518,1742499035268,-2050.23,0.00032876,21]
[356468519,1742499035278,-2050.48,0.00032876,21]
[356468520,1742499035287,-773.5,0.00032876,21]
[356468521,1742499035299,-500.0,0.00032876,21]
[356468522,1742499035308,-500.0,0.00032876,21]
[356468523,1742499035319,-1218.91,0.00032876,21]
[356468524,1742499035330,-569.17,0.00032876,21]
[356468525,1742499035341,-500.0,0.00032876,21]
[356468526,1742499035351,-1447.34,0.00032876,21]
[356468527,1742499035360,-501.13677246,0.00032876,21]
[356468528,1742499035370,-521.18,0.00032876,21]
[356468529,1742499035379,-500.0,0.00032876,21]
[356468530,1742499035389,-500.0,0.00032876,21]
[356468531,1742499035399,-500.0,0.00032876,21]
[356468532,1742499035409,-500.0,0.00032876,21]
[356468533,1742499035418,-1231.53,0.00032876,21]
[356468534,1742499035428,-500.0,0.00032876,21]
[356468535,1742499035440,-1351.31,0.00032876,21]
[356468536,1742499035450,-500.0,0.00032876,21]
[356468537,1742499035459,-500.0,0.00032876,21]
[356468538,1742499035469,-679.8,0.00032876,21]
[356468539,1742499035479,-500.0,0.00032876,21]
[356468540,1742499035489,-922.25,0.00032876,21]
[356468541,1742499035498,-507.96,0.00032876,21]
[356468542,1742499035509,-500.0,0.00032876,21]
[356468543,1742499035519,-500.0,0.00032876,21]
[356468544,1742499035528,-500.0,0.00032876,21]
[356468545,1742499035538,-644.49,0.00032876,21]
[356468546,1742499035548,-500.0,0.00032876,21]
[356468547,1742499035558,-591.02857737,0.00032876,21]
[356468548,1742499035567,-500.0,0.00032876,21]
[356468549,1742499035577,-500.0,0.00032876,21]
[356468550,1742499035586,-500.0,0.00032876,21]
[356468551,1742499035596,-1511.59,0.00032876,21]
[356468552,1742499035605,-590.03628318,0.00032876,21]
[356468553,1742499035615,-502.27289519,0.00032876,21]
[356468554,1742499035625,-500.0,0.00032876,21]
[356468555,1742499035634,-500.0,0.00032876,21]
[356468556,1742499035644,-500.0,0.00032876,21]
[356468557,1742499035654,-1642.46,0.00032876,21]
[356468558,1742499035663,-500.0,0.00032876,21]
[356468559,1742499035672,-500.0,0.00032876,21]
[356468560,1742499035682,-1516.0,0.00032876,21]
[356468561,1742499035691,-500.0,0.00032876,21]
[356468562,1742499035701,-500.0,0.00032876,120]
[356468563,1742499035711,-500.0,0.00032876,21]
[356468564,1742499035721,-500.0,0.00032876,21]
[356468565,1742499035733,-980.62,0.00032876,21]
[356468566,1742499035744,-768.35,0.00032876,21]
[356468567,1742499035754,-530.11,0.00032876,21]
[356468568,1742499035763,-500.0,0.00032876,21]
[356468569,1742499035772,-500.0,0.00032876,21]
[356468570,1742499035782,-1772.02,0.00032876,21]
[356468571,1742499035791,-500.0,0.00032876,21]
[356468572,1742499035801,-500.0,0.00032876,21]
[356468573,1742499035810,-500.0,0.00032876,21]
[356468574,1742499035820,-500.0,0.00032876,21]
[356468575,1742499035830,-1945.06,0.00032876,21]
[356468576,1742499035839,-500.0,0.00032876,21]
[356468577,1742499035849,-1266.35,0.00032876,21]
[356468578,1742499035858,-500.0,0.00032876,21]
[356468579,1742499035868,-500.0,0.00032876,21]
[356468580,1742499035878,-619.51,0.00032876,21]
[356468581,1742499035894,-500.0,0.00032876,21]
[356468582,1742499035903,-1484.11,0.00032876,21]
[356468583,1742499035913,-500.0,0.00032876,21]
[356468584,1742499035923,-2896.83081813,0.00032876,21]
[356468597,1742499038080,-500.0,0.00032774,2]
[356468598,1742499038090,-500.0,0.00032774,2]
[356468599,1742499038099,-432.98862067,0.00032774,2]
[356468601,1742499038108,-500.0,0.00032774,2]
[356468603,1742499038118,-500.0,0.00032774,2]
[356468605,1742499038127,-500.0,0.00032774,2]
[356468606,1742499038136,-500.0,0.00032774,2]
[356468607,1742499038146,-500.0,0.00032774,2]
[356468608,1742499038156,-500.0,0.00032774,2]
[356468610,1742499038165,-354.27011159,0.00032774,2]
[356468611,1742499038175,-500.0,0.00032774,2]
[356468612,1742499038184,-486.15918187,0.00032876,21]
[356468613,1742499038193,-1471.49,0.00032876,21]
[356468614,1742499038203,-500.0,0.00032876,21]
[356468615,1742499038212,-500.0,0.00032876,21]
[356468616,1742499038221,-500.0,0.00032876,21]
[356468617,1742499038230,-1466.78,0.00032876,21]
[356468618,1742499038240,-500.0,0.00032876,21]
[356468619,1742499038249,-315.01823585,0.00032876,21]
[356468622,1742499040199,-184.98176415,0.00032876,21]
[356468623,1742499040209,-315.01823585,0.00032876,21]
[356468748,1742500232241,-300.0,0.00031269,2]
[356468749,1742500232252,-24900.0,0.0003127,2]
[356468750,1742500232262,-200.0,0.00031321,15]
[356468751,1742500232271,-833.99388742,0.00031698,2]
[356468752,1742500232281,-190.30688707,0.00032672,2]
[356468753,1742500232291,-600.0,0.00032756,2]
[356468754,1742500232300,-500.0,0.00032771,2]
[356468755,1742500232310,-500.0,0.00032771,2]
[356468756,1742500232319,-500.0,0.00032771,2]
[356468757,1742500232329,-500.0,0.00032771,2]
[356468758,1742500232338,-500.0,0.00032771,2]
[356468759,1742500232348,-500.0,0.00032771,2]
[356468760,1742500232358,-291.21048126,0.00032771,2]
[356468761,1742500232368,-500.0,0.00032771,2]
[356468762,1742500232378,-500.0,0.00032771,2]
[356468763,1742500232388,-500.0,0.00032771,2]
[356468764,1742500232398,-500.0,0.00032771,2]
[356468765,1742500232407,-500.0,0.00032771,2]
[356468766,1742500232417,-500.0,0.00032771,2]
[356468768,1742500232427,-500.0,0.00032771,2]
[356468770,1742500232436,-500.0,0.00032771,2]
[356468772,1742500232446,-500.0,0.00032771,2]
[356468774,1742500232455,-500.0,0.00032771,2]
[356468792,1742500232751,-500.0,0.00032771,2]
[356468793,1742500232781,-500.0,0.00032771,2]
[356468794,1742500232791,-500.0,0.00032771,2]
[356468795,1742500232800,-500.0,0.00032771,2]
[356468796,1742500232809,-500.0,0.00032771,2]
[356468797,1742500232821,-4127.65305841,0.00032773,2]
[356468798,1742500232831,-205.73796554,0.00032775,2]
[356468799,1742500232841,-490.4333906,0.00032775,2]
[356468800,1742500232851,-101168.82246356,0.00032776,2]
[356468801,1742500232860,-2265.0,0.00032784,2]
[356468802,1742500232870,-300.0,0.000328,16]
[356468803,1742500232879,-543.54688127,0.00032873,5]
[356468804,1742500232888,-159.40432394,0.00032873,5]
[356468805,1742500232898,-500.0,0.00032873,5]
[356468806,1742500232908,-500.0,0.00032873,5]
[356468807,1742500232917,-500.0,0.00032873,5]
[356468808,1742500232927,-501.12466227,0.00032873,5]
[356468809,1742500232937,-185.01563149,0.00032873,5]
[356468810,1742500232946,-500.0,0.00032873,5]
[356468811,1742500232957,-500.0,0.00032873,5]
[356468812,1742500232967,-500.0,0.00032873,5]
[356468813,1742500232976,-500.0,0.00032873,5]
[356468814,1742500232986,-501.71725763,0.00032873,5]
[356468815,1742500232996,-500.0,0.00032873,5]
[356468816,1742500233006,-500.0,0.00032873,5]
[356468817,1742500233016,-500.0,0.00032873,5]
[356468818,1742500233026,-500.0,0.00032873,5]
[356468819,1742500233036,-500.0,0.00032873,5]
[356468820,1742500233046,-500.0,0.00032873,5]
[356468821,1742500233057,-500.28922126,0.00032873,2]
[356468822,1742500233067,-500.0,0.00032873,5]
[356468823,1742500233078,-500.72457754,0.00032873,5]
[356468824,1742500233087,-500.0,0.00032873,5]
[356468825,1742500233097,-420.67002841,0.00032873,5]
[356468826,1742500233107,-500.0,0.00032873,5]
[356468827,1742500233116,-500.0,0.00032873,5]
[356468828,1742500233126,-500.0,0.00032873,5]
[356468829,1742500233136,-500.24236722,0.00032873,5]
[356468830,1742500233146,-500.0,0.00032873,5]
[356468831,1742500233156,-500.0,0.00032873,5]
[356468832,1742500233166,-500.0,0.00032873,5]
[356468833,1742500233176,-19719.81431499,0.00032876,20]
[356468834,1742500233186,-3710.5115881,0.00032876,20]
[356468835,1742500233195,-500.0,0.00032876,21]
[356468836,1742500233205,-95.75425727,0.00032876,21]
[356468837,1742500233219,-404.24574273,0.00032876,21]
[356468838,1742500233230,-500.0,0.00032876,21]
[356468839,1742500233239,-488.54372861,0.00032876,21]
[356468840,1742500233249,-208.84989201,0.00032876,21]
[356468841,1742500233260,-500.0,0.00032876,21]
[356468842,1742500233269,-505.69441153,0.00032876,21]
[356468843,1742500233279,-502.85277122,0.00032876,21]
[356468844,1742500233288,-505.3001398,0.00032876,21]
[356468845,1742500233298,-505.07885002,0.00032876,21]
[356468846,1742500233308,-509.86546913,0.00032876,14]
[356468847,1742500233318,-500.0,0.00032876,21]
[356468848,1742500233328,-751.56,0.00032876,21]
[356468849,1742500233337,-502.17720729,0.00032876,21]
[356468850,1742500233347,-500.0,0.00032876,21]
[356468851,1742500233356,-500.0,0.00032876,21]
[356468852,1742500233366,-218.98543177,0.00032876,21]
[356468853,1742500233376,-501.98807863,0.00032876,21]
[356468854,1742500233386,-1555.74,0.00032876,21]
[356468855,1742500233395,-500.0,0.00032876,21]
[356468856,1742500233405,-500.0,0.00032876,21]
[356468857,1742500233414,-500.0,0.00032876,21]
[356468858,1742500233424,-500.0,0.00032876,21]
[356468859,1742500233434,-2108.82,0.00032876,21]
[356468860,1742500233443,-261.27830482,0.00032876,21]
[356468861,1742500233453,-500.0,0.00032876,21]
[356468862,1742500233464,-500.0,0.00032876,21]
[356468863,1742500233474,-500.0,0.00032876,21]
[356468864,1742500233483,-500.0,0.00032876,21]
[356468865,1742500233493,-568.78,0.00032876,21]
[356468866,1742500233504,-500.0,0.00032876,21]
[356468867,1742500233514,-615.44,0.00032876,21]
[356468868,1742500233524,-500.0,0.00032876,21]
[356468869,1742500233534,-500.0,0.00032876,21]
[356468870,1742500233544,-500.0,0.00032876,21]
[356468871,1742500233554,-373.43822627,0.00032876,21]
[356468872,1742500233565,-500.0,0.00032876,21]
[356468873,1742500233575,-500.0,0.00032876,21]
[356468874,1742500233585,-500.0,0.00032876,21]
[356468875,1742500233595,-500.0,0.00032876,21]
[356468876,1742500233605,-500.0,0.00032876,21]
[356468877,1742500233615,-500.0,0.00032876,21]
[356468878,1742500233626,-701.75,0.00032876,21]
[356468879,1742500233636,-500.0,0.00032876,21]
[356468880,1742500233646,-384.73095345,0.00032876,5]
[356468881,1742500233655,-500.0,0.00032876,21]
[356468882,1742500233665,-949.17,0.00032876,21]
[356468883,1742500233675,-989.05,0.00032876,21]
[356468884,1742500233685,-500.0,0.00032876,21]
[356468885,1742500233695,-500.0,0.00032876,21]
[356468886,1742500233705,-500.0,0.00032876,21]
[356468887,1742500233715,-500.0,0.00032876,21]
[356468888,1742500233725,-500.0,0.00032876,21]
[356468889,1742500233735,-500.0,0.00032876,21]
[356468890,1742500233745,-500.0,0.00032876,21]
[356468891,1742500233756,-500.0,0.00032876,21]
[356468892,1742500233765,-545.46,0.00032876,21]
[356468893,1742500233775,-500.0,0.00032876,21]
[356468894,1742500233784,-500.0,0.00032876,21]
[356468895,1742500233794,-500.0,0.00032876,21]
[356468896,1742500233805,-500.0,0.00032876,21]
[356468897,1742500233815,-500.0,0.00032876,21]
[356468898,1742500233830,-500.0,0.00032876,21]
[356468899,1742500233842,-500.0,0.00032876,21]
[356468900,1742500233853,-500.0,0.00032876,21]
[356468901,1742500233864,-500.0,0.00032876,21]
[356468902,1742500233874,-500.0,0.00032876,21]
[356468903,1742500233885,-500.0,0.00032876,21]
[356468904,1742500233896,-500.0,0.00032876,21]
[356468905,1742500233908,-500.0,0.00032876,21]
[356468906,1742500233919,-1574.02,0.00032876,21]
[356468907,1742500233930,-1195.26,0.00032876,21]
[356468908,1742500233940,-500.0,0.00032876,21]
[356468909,1742500233949,-151.0,0.00032876,7]
[356468910,1742500233962,-236.519469,0.00032876,7]
[356468911,1742500233972,-500.0,0.00032876,21]
[356468912,1742500233982,-379.36487085,0.00032876,21]
[356468913,1742500233992,-500.0,0.00032876,21]
[356468914,1742500234003,-500.0,0.00032876,21]
[356468915,1742500234013,-500.0,0.00032876,21]
[356468916,1742500234023,-500.0,0.00032876,21]
[356468917,1742500234032,-500.0,0.00032876,21]
[356468918,1742500234042,-593.7,0.00032876,21]
[356468919,1742500234053,-500.0,0.00032876,21]
[356468920,1742500234063,-500.0,0.00032876,21]
[356468921,1742500234074,-500.0,0.00032876,21]
[356468922,1742500234084,-500.0,0.00032876,21]
[356468923,1742500234094,-500.0,0.00032876,21]
[356468924,1742500234104,-500.0,0.00032876,21]
[356468925,1742500234114,-500.0,0.00032876,21]
[356468926,1742500234125,-500.0,0.00032876,21]
[356468927,1742500234135,-500.0,0.00032876,21]
[356468928,1742500234146,-1230.04,0.00032876,21]
[356468929,1742500234156,-1222.37,0.00032876,21]
[356468930,1742500234166,-667.5,0.00032876,21]
[356468931,1742500234176,-500.0,0.00032876,21]
[356468932,1742500234185,-386.03816732,0.00032876,21]
[356468933,1742500234196,-500.0,0.00032876,21]
[356468934,1742500234206,-500.0,0.00032876,21]
[356468935,1742500234219,-636.64,0.00032876,21]
[356468936,1742500234228,-863.54,0.00032876,21]
[356468937,1742500234239,-500.0,0.00032876,21]
[356468938,1742500234250,-523.09,0.00032876,21]
[356468939,1742500234261,-185.37400449,0.00032876,21]
[356468940,1742500234271,-548.07,0.00032876,21]
[356468941,1742500234281,-1220.23,0.00032876,21]
[356468942,1742500234290,-500.0,0.00032876,21]
[356468943,1742500234300,-500.0,0.00032876,21]
[356468944,1742500234309,-540.59395731,0.00032876,21]
[356468945,1742500234319,-500.0,0.00032876,21]
[356468946,1742500234330,-500.0,0.00032876,21]
[356468947,1742500234340,-606.47,0.00032876,21]
[356468948,1742500234350,-500.0,0.00032876,21]
[356468949,1742500234360,-500.0,0.00032876,21]
[356468950,1742500234370,-2148.3,0.00032876,21]
[356468951,1742500234380,-566.41,0.00032876,21]
[356468952,1742500234390,-500.0,0.00032876,21]
[356468953,1742500234400,-500.0,0.00032876,21]
[356468954,1742500234410,-1396.39,0.00032876,21]
[356468955,1742500234420,-759.27,0.00032876,21]
[356468956,1742500234431,-500.0,0.00032876,21]
[356468957,1742500234441,-467.2554633,0.00032876,21]
[356468958,1742500234451,-1358.67,0.00032876,21]
[356468959,1742500234460,-559.28,0.00032876,21]
[356468960,1742500234470,-500.0,0.00032876,21]
[356468961,1742500234480,-500.0,0.00032876,21]
[356468962,1742500234489,-452.44114783,0.00032876,21]
[356468963,1742500234499,-746.48,0.00032876,21]
[356468964,1742500234509,-500.0,0.00032876,21]
[356468965,1742500234519,-1198.35,0.00032876,21]
[356468966,1742500234529,-2053.75,0.00032876,21]
[356468967,1742500234539,-500.0,0.00032876,21]
[356468968,1742500234548,-935.42,0.00032876,21]
[356468969,1742500234558,-500.0,0.00032876,21]
[356468970,1742500234568,-1937.33,0.00032876,21]
[356468971,1742500234578,-739.42,0.00032876,21]
[356468972,1742500234588,-500.0,0.00032876,21]
[356468973,1742500234598,-1299.52,0.00032876,21]
[356468974,1742500234609,-500.0,0.00032876,21]
[356468975,1742500234619,-1197.7,0.00032876,21]
[356468976,1742500234635,-500.0,0.00032876,7]
[356468977,1742500234645,-960.0,0.00032876,21]
[356468978,1742500234654,-500.0,0.00032876,21]
[356468979,1742500234664,-500.0,0.00032876,21]
[356468980,1742500234674,-500.0,0.00032876,21]
[356468981,1742500234683,-1000.0,0.00032876,120]
[356468982,1742500234698,-500.96075137,0.00032876,21]
[356468983,1742500234708,-520.66534353,0.00032876,21]
[356468984,1742500234719,-500.0,0.00032876,21]
[356468985,1742500234728,-500.0,0.00032876,21]
[356468986,1742500234739,-889.37,0.00032876,21]
[356468987,1742500234748,-500.0,0.00032876,21]
[356468988,1742500234758,-500.0,0.00032876,21]
[356468989,1742500234768,-500.0,0.00032876,21]
[356468990,1742500234777,-257.5259894,0.00032876,21]
[356468991,1742500234846,-500.0,0.00032771,2]
[356468992,1742500234856,-242.4740106,0.00032876,21]
[356468993,1742500234867,-500.0,0.00032876,21]
[356468994,1742500234877,-500.0,0.00032876,21]
[356468995,1742500234888,-500.0,0.00032876,21]
[356468996,1742500234899,-500.0,0.00032876,21]
[356468997,1742500234909,-402.68262168,0.00032876,21]
[356468998,1742500234918,-500.716548,0.00032876,21]
[356468999,1742500234927,-507.60654201,0.00032876,21]
[356469000,1742500234936,-690.56,0.00032876,21]
[356469001,1742500234945,-500.0,0.00032876,21]
[356469002,1742500234955,-1519.7,0.00032876,21]
[356469003,1742500234964,-1017.96,0.00032876,21]
[356469004,1742500234974,-512.88753244,0.00032876,21]
[356469005,1742500234984,-849.63,0.00032876,2]
[356469006,1742500234993,-500.0,0.00032876,21]
[356469007,1742500235002,-1985.64,0.00032876,21]
[356469008,1742500235011,-500.0,0.00032876,21]
[356469009,1742500235020,-506.83036934,0.00032876,21]
[356469010,1742500235029,-500.0,0.00032876,21]
[356469011,1742500235039,-500.0,0.00032876,21]
[356469012,1742500235048,-500.0,0.00032876,21]
[356469013,1742500235057,-500.0,0.00032876,21]
[356469014,1742500235066,-671.1,0.00032876,21]
[356469015,1742500235075,-2000.56,0.00032876,21]
[356469016,1742500235085,-500.0,0.00032876,21]
[356469017,1742500235094,-835.83,0.00032876,21]
[356469018,1742500235103,-500.0,0.00032876,21]
[356469019,1742500235113,-500.0,0.00032876,21]
[356469020,1742500235122,-697.78,0.00032876,21]
[356469021,1742500235131,-499.98087625,0.00032876,21]
[356469022,1742500235140,-500.0,0.00032876,21]
[356469023,1742500235149,-1315.84,0.00032876,21]
[356469024,1742500235160,-1187.48,0.00032876,21]
[356469025,1742500235169,-500.0,0.00032876,21]
[356469026,1742500235179,-500.0,0.00032876,21]
[356469027,1742500235188,-500.0,0.00032876,21]
[356469028,1742500235197,-507.63,0.00032876,21]
[356469029,1742500235207,-500.0,0.00032876,21]
[356469030,1742500235218,-519.06061998,0.00032876,21]
[356469031,1742500235227,-307.4090598,0.00032876,21]
[356469032,1742500235237,-672.31,0.00032876,21]
[356469033,1742500235247,-500.0,0.00032876,20]
[356469034,1742500235257,-500.0,0.00032876,20]
[356469035,1742500235267,-500.0,0.00032876,20]
[356469036,1742500235330,-500.0,0.00032876,20]
[356469037,1742500235346,-500.0,0.00032876,21]
[356469038,1742500235355,-500.0,0.00032876,21]
[356469039,1742500235366,-1965.05,0.00032876,21]
[356469040,1742500235377,-500.0,0.00032876,20]
[356469041,1742500235386,-500.0,0.00032876,20]
[356469042,1742500235395,-500.0,0.00032876,20]
[356469043,1742500235403,-500.0,0.00032876,20]
[356469044,1742500235412,-500.0,0.00032876,20]
[356469045,1742500235422,-500.0,0.00032876,20]
[356469046,1742500235431,-405.85938732,0.00032876,20]
[356469047,1742500235443,-500.0,0.00032876,21]
[356469048,1742500235453,-500.0,0.00032876,21]
[356469049,1742500235463,-500.0,0.00032876,21]
[356469050,1742500235472,-500.0,0.00032876,21]
[356469051,1742500235482,-500.0,0.00032876,21]
[356469052,1742500235491,-500.0,0.00032876,21]
[356469053,1742500235500,-500.0,0.00032876,21]
[356469054,1742500235510,-578.69107207,0.00032876,21]
[356469055,1742500235519,-500.0,0.00032876,21]
[356469056,1742500235529,-500.0,0.00032876,21]
[356469057,1742500235538,-501.23941656,0.00032876,21]
[356469058,1742500235547,-521.36792255,0.00032876,21]
[356469059,1742500235556,-500.0,0.00032876,21]
[356469060,1742500235565,-1636.12,0.00032876,21]
[356469061,1742500235574,-1168.12,0.00032876,21]
[356469062,1742500235583,-541.04,0.00032876,21]
[356469063,1742500235592,-500.0,0.00032876,21]
[356469064,1742500235603,-542.11,0.00032876,21]
[356469065,1742500235614,-790.44,0.00032876,21]
[356469066,1742500235624,-500.0,0.00032876,21]
[356469067,1742500235634,-500.0,0.00032876,21]
[356469068,1742500235643,-500.0,0.00032876,21]
[356469069,1742500235652,-500.0,0.00032876,21]
[356469070,1742500235661,-510.94320681,0.00032876,21]
[356469071,1742500235670,-1469.44,0.00032876,21]
[356469072,1742500235680,-500.0,0.00032876,21]
[356469073,1742500235689,-500.0,0.00032876,21]
[356469074,1742500235698,-500.0,0.00032876,21]
[356469075,1742500235707,-500.0,0.00032876,21]
[356469076,1742500235717,-500.0,0.00032876,21]
[356469077,1742500235726,-506.24232103,0.00032876,21]
[356469078,1742500235736,-1240.93,0.00032876,21]
[356469079,1742500235746,-500.0,0.00032876,21]
[356469080,1742500235755,-500.0,0.00032876,21]
[356469081,1742500235765,-500.0,0.00032876,21]
[356469082,1742500235774,-500.0,0.00032876,21]